fUST/lending_fUST_20251004
["ID","MTS","AMOUNT","RATE_DAILY","PERIOD"]
[389037796,1759569036984,-500.0,0.00021274,2]
[389037797,1759569036994,-500.0,0.00021274,2]
[389037798,1759569037004,-953.63,0.00021276,10]
[389037799,1759569037013,-183.57526215,0.00021287,2]
[389037800,1759569037022,-168.0,0.00021314,2]
[389037801,1759569037032,-1434.80688028,0.00021395,2]
[389037802,1759569037041,-3411.0,0.00021502,2]
[389037803,1759569037050,-504.4922036,0.00021525,2]
[389037804,1759569037059,-168.0,0.00021537,2]
[389037805,1759569037068,-3411.0,0.00021613,2]
[389037806,1759569037078,-869.97902128,0.00021633,2]
[389037807,1759569037087,-1566.4762475,0.00021649,2]
[389037808,1759569037097,-358.85266453,0.00021663,2]
[389037809,1759569037106,-213.03029369,0.00021663,2]
[389037810,1759569037116,-3411.0,0.00021664,2]
[389037811,1759569037125,-276.0,0.00021674,2]
[389037812,1759569037134,-168.0,0.00021686,2]
[389037813,1759569037143,-1566.4762475,0.00021691,2]
[389037814,1759569037153,-500.0,0.00021703,2]
[389037815,1759569037163,-535.26,0.00021706,3]
[389037816,1759569037173,-794.69,0.00021706,10]
[389037817,1759569037183,-2572.09,0.00021714,2]
[389037818,1759569037193,-74246.34119049,0.00021716,2]
[389037819,1759569037217,-907.20057776,0.00021716,2]
[389037820,1759569037229,-333.46923112,0.00021716,2]
[389037821,1759569037241,-1142.1,0.00021716,2]
[389037822,1759569037254,-1292.34800498,0.00021716,2]
[389037823,1759569037265,-1535.75492649,0.00021716,2]
[389037872,1759569038768,-500.0,0.00021274,2]
[389037874,1759569038778,-500.0,0.00021274,2]
[389037876,1759569038788,-500.0,0.00021274,2]
[389037877,1759569038798,-500.0,0.00021274,2]
[389037879,1759569038808,-122757.02601988,0.00021716,2]
[389037882,1759569038830,-18519.89654984,0.00021716,2]
[389037884,1759569038845,-848.5904708,0.00021716,2]
[389038063,1759569040541,-6656.2,0.00021273,2]
[389038372,1759569043632,-219.41102302,0.00021174,2]
[389038375,1759569043642,-43343.8,0.00021273,2]
[389038376,1759569043651,-500.0,0.00021274,2]
[389038379,1759569043661,-500.0,0.00021274,2]
[389038381,1759569043671,-500.0,0.00021274,2]
[389038383,1759569043680,-500.0,0.00021274,2]
[389038385,1759569043689,-500.0,0.00021274,2]
[389038387,1759569043699,-662.24,0.00021706,10]
[389038389,1759569043708,-138818.67345425,0.00021716,2]
[389038391,1759569043725,-9598.59957439,0.00021716,2]
[389038393,1759569043734,-151.0,0.00021716,2]
[389038395,1759569043743,-1566.4762475,0.00021733,2]
[389038397,1759569043752,-168.0,0.00021749,2]
[389038399,1759569043761,-500.0,0.00021773,2]
[389038401,1759569043771,-648.79044885,0.00021773,2]
[389038403,1759569043780,-500.0,0.00021773,2]
[389038405,1759569043790,-500.0,0.00021773,2]
[389038407,1759569043799,-500.0,0.00021773,2]
[389038409,1759569043808,-303.28166754,0.00021773,2]
[389038411,1759569043817,-500.64977144,0.00021773,2]
[389038413,1759569043826,-500.0,0.00021773,2]
[389038416,1759569043839,-500.0,0.00021773,2]
[389038418,1759569043849,-500.0,0.00021773,2]
[389038420,1759569043859,-500.0,0.00021773,2]
[389038422,1759569043868,-500.0,0.00021773,2]
[389038424,1759569043877,-500.0,0.00021773,2]
[389038426,1759569043886,-500.0,0.00021773,2]
[389038428,1759569043897,-500.0,0.00021773,2]
[389038430,1759569043906,-500.0,0.00021773,2]
[389038432,1759569043915,-500.0,0.00021773,2]
[389038434,1759569043925,-500.0,0.00021773,2]
[389038436,1759569043934,-502.35773185,0.00021773,2]
[389038438,1759569043943,-500.0,0.00021773,2]
[389038439,1759569043952,-500.0,0.00021773,2]
[389038440,1759569043962,-500.0,0.00021773,2]
[389038441,1759569043971,-500.0,0.00021773,2]
[389038442,1759569043980,-504.33402694,0.00021773,2]
[389038443,1759569043989,-159.55833511,0.00021773,2]
[389038444,1759569043998,-500.95620488,0.00021773,2]
[389038445,1759569044009,-341.40647495,0.00021773,2]
[389038446,1759569044017,-504.2416989,0.00021773,2]
[389038447,1759569044026,-502.65122307,0.00021773,2]
[389038448,1759569044036,-500.0,0.00021773,2]
[389038449,1759569044045,-500.0,0.00021773,2]
[389038450,1759569044054,-500.76022665,0.00021773,2]
[389038451,1759569044063,-500.0,0.00021773,2]
[389038452,1759569044072,-1566.4762475,0.00021775,2]
[389038453,1759569044081,-891.2425364,0.00021777,2]
[389038454,1759569044090,-4382.2062409,0.00021777,2]
[389038455,1759569044100,-4813.46829,0.00021777,2]
[389038456,1759569044109,-2199.73939486,0.00021777,2]
[389038457,1759569044120,-9065.59861804,0.00021777,2]
[389038458,1759569044130,-885.2810916,0.00021777,2]
[389038459,1759569044139,-500.0,0.00021817,2]
[389038460,1759569044148,-1129.594,0.00021817,2]
[389038461,1759569044157,-1566.4762475,0.00021817,2]
[389038462,1759569044166,-168.0,0.00021854,2]
[389038463,1759569044175,-334.51701486,0.00021873,2]
[389038464,1759569044195,-165.48298514,0.00021873,2]
[389038465,1759569044204,-155.5103344,0.000219,2]
[389038466,1759569044213,-500.0,0.00021903,2]
[389038467,1759569044222,-151.0,0.00021904,2]
[389038468,1759569044231,-253.279,0.00021916,2]
[389038469,1759569044240,-158.808,0.00021916,2]
[389038470,1759569044249,-8000.0,0.00021916,2]
[389038471,1759569044258,-276.0,0.00021917,2]
[389038473,1759569044268,-500.0,0.00021917,2]
[389038474,1759569044277,-500.0,0.00021917,2]
[389038476,1759569044286,-500.0,0.00021917,2]
[389038478,1759569044295,-500.0,0.00021917,2]
[389038480,1759569044305,-500.0,0.00021917,2]
[389038482,1759569044314,-500.0,0.00021917,2]
[389038484,1759569044323,-160.9072093,0.00021917,2]
[389038486,1759569044332,-500.0,0.00021917,2]
[389038488,1759569044341,-500.0,0.00021917,2]
[389038490,1759569044350,-500.0,0.00021917,2]
[389038492,1759569044359,-500.0,0.00021917,2]
[389038494,1759569044368,-500.0,0.00021917,2]
[389038496,1759569044377,-500.0,0.00021917,2]
[389038498,1759569044387,-553.32010482,0.00021917,2]
[389038500,1759569044396,-500.0,0.00021917,2]
[389038502,1759569044406,-1305.37,0.00021917,2]
[389038504,1759569044415,-500.0,0.00021917,2]
[389038506,1759569044424,-500.0,0.00021917,2]
[389038508,1759569044433,-500.0,0.00021917,2]
[389038510,1759569044442,-500.0,0.00021917,2]
[389038512,1759569044451,-500.0,0.00021917,2]
[389038514,1759569044460,-500.0,0.00021917,2]
[389038516,1759569044469,-603.08,0.00021917,2]
[389038517,1759569044479,-500.0,0.00021917,2]
[389038519,1759569044492,-500.0,0.00021917,2]
[389038521,1759569044501,-106.10886634,0.00021917,2]
[389040388,1759569063456,156.060269,0.00024493,30]
[389044489,1759569303389,164.0,0.00025,30]
[389044534,1759569663621,156.060269,0.00024344,30]
[389044536,1759569847062,163.26668818,0.00024795,30]
[389044537,1759569864443,21600.0,0.00028767,120]
[389044540,1759570172796,3118.5,0.0001803,2]
[389044839,1759570237620,-300.0,0.00019176,2]
[389044841,1759570237629,-1200.0,0.00019176,2]
[389044843,1759570237639,-1200.0,0.00019177,2]
[389044845,1759570237648,-264.67827173,0.00019177,2]
[389044849,1759570237675,-35.32172827,0.00019177,2]
[389044851,1759570237684,-300.0,0.00019177,2]
[389044853,1759570237693,-5000.0,0.00019178,2]
[389044855,1759570237702,-636.6952005,0.000192,2]
[389044857,1759570237711,-512.05810687,0.00019476,2]
[389044859,1759570237720,-461.39835995,0.0001978,2]
[389044861,1759570237730,-181.039046,0.00019921,2]
[389044863,1759570237739,-500.0,0.00019999,2]
[389044865,1759570237749,-500.0,0.00019999,2]
[389044867,1759570237759,-500.0,0.00019999,2]
[389044869,1759570237768,-500.0,0.00019999,2]
[389044871,1759570237777,-500.0,0.00019999,2]
[389044873,1759570237787,-599.16164406,0.00019999,2]
[389044875,1759570237796,-500.0,0.00019999,2]
[389044877,1759570237806,-270.41051146,0.00019999,2]
[389044879,1759570237815,-500.0,0.00019999,2]
[389044881,1759570237823,-500.0,0.00019999,2]
[389044883,1759570237832,-500.0,0.00019999,2]
[389044885,1759570237841,-500.0,0.00019999,2]
[389044887,1759570237850,-500.0,0.00019999,2]
[389044889,1759570237859,-500.0,0.00019999,2]
[389044891,1759570237868,-500.0,0.00019999,2]
[389044892,1759570237878,-500.0,0.00019999,2]
[389044893,1759570237887,-500.0,0.00019999,2]
[389044895,1759570237895,-500.0,0.00019999,2]
[389044897,1759570237904,-500.0,0.00019999,2]
[389044899,1759570237913,-500.0,0.00019999,2]
[389044901,1759570237922,-500.0,0.00019999,2]
[389044903,1759570237931,-500.0,0.00019999,2]
[389044905,1759570237940,-500.0,0.00019999,2]
[389044907,1759570237949,-500.0,0.00019999,2]
[389044909,1759570237959,-392.8739501,0.00019999,2]
[389044911,1759570237968,-500.0,0.00019999,2]
[389044913,1759570237978,-401.77457901,0.00019999,2]
[389044915,1759570237987,-500.0,0.00019999,2]
[389044917,1759570237996,-500.0,0.00019999,2]
[389044919,1759570238005,-494.32173062,0.00019999,2]
[389044921,1759570238014,-500.0,0.00019999,2]
[389044923,1759570238023,-500.0,0.00019999,2]
[389044925,1759570238035,-500.0,0.00019999,2]
[389044927,1759570238044,-500.0,0.00019999,2]
[389044929,1759570238054,-257.23331403,0.00019999,2]
[389044931,1759570238063,-500.0,0.00019999,2]
[389044933,1759570238071,-393.33587709,0.00019999,2]
[389044935,1759570238081,-500.0,0.00019999,2]
[389044937,1759570238090,-500.0,0.00019999,2]
[389044939,1759570238099,-500.0,0.00019999,2]
[389044941,1759570238109,-500.0,0.00019999,2]
[389044943,1759570238119,-500.0,0.00019999,2]
[389044946,1759570238128,-500.0,0.00019999,2]
[389044947,1759570238138,-500.0,0.00019999,2]
[389044948,1759570238148,-500.0,0.00019999,2]
[389044950,1759570238157,-500.0,0.00019999,2]
[389044952,1759570238167,-500.0,0.00019999,2]
[389044954,1759570238176,-500.0,0.00019999,2]
[389044956,1759570238185,-500.0,0.00019999,2]
[389044958,1759570238195,-500.0,0.00019999,2]
[389044960,1759570238204,-500.0,0.00019999,2]
[389044962,1759570238213,-500.0,0.00019999,2]
[389044964,1759570238223,-500.0,0.00019999,2]
[389044966,1759570238232,-500.0,0.00019999,2]
[389044968,1759570238242,-500.0,0.00019999,2]
[389044970,1759570238251,-500.0,0.00019999,2]
[389044972,1759570238260,-500.0,0.00019999,2]
[389044974,1759570238270,-500.0,0.00019999,2]
[389044976,1759570238287,-500.0,0.00019999,2]
[389044978,1759570238296,-500.0,0.00019999,2]
[389044980,1759570238305,-500.0,0.00019999,2]
[389044982,1759570238315,-3807.99743417,0.0002,2]
[389044984,1759570238324,-5282.57976678,0.0002,2]
[389044986,1759570238333,-33748.18644739,0.0002,2]
[389044988,1759570238342,-303.45979257,0.00020285,2]
[389044990,1759570238351,-500.0,0.00020286,2]
[389044992,1759570238360,-500.0,0.0002056,2]
[389044994,1759570238370,-420.0,0.00020899,2]
[389044996,1759570238379,-579.98601418,0.00021086,2]
[389044998,1759570238389,-1343.79181852,0.00021086,2]
[389045000,1759570238398,-1308.52,0.00021176,3]
[389045002,1759570238407,-654.26,0.00021176,3]
[389045004,1759570238416,-327.13,0.00021176,3]
[389045006,1759570238424,-163.56,0.00021176,3]
[389045008,1759570238434,-490.72,0.00021176,3]
[389045010,1759570238443,-551.87,0.00021176,10]
[389045012,1759570238452,-459.89,0.00021176,10]
[389045014,1759570238461,-383.24,0.00021176,10]
[389045016,1759570238470,-370000.0,0.00021186,2]
[389045018,1759570238480,-500.0,0.00021186,2]
[389045020,1759570238489,-1343.7918185,0.00021269,2]
[389045022,1759570238499,-1343.7918185,0.00021452,2]
[389045024,1759570238508,-1343.7918185,0.00021634,2]
[389045026,1759570238518,-168.0,0.00021695,2]
[389045028,1759570238527,-168.0,0.0002177,2]
[389045030,1759570238537,-1343.7918185,0.00021817,2]
[389045032,1759570238546,-3526.2951472,0.00021841,2]
[389045034,1759570238555,-1195.9795821,0.00021841,2]
[389045036,1759570238564,-1313.6784252,0.00021841,2]
[389045038,1759570238574,-168.0,0.00021849,2]
[389045040,1759570238583,-579.98601417,0.00021863,2]
[389045042,1759570238592,-168.0,0.00021876,2]
[389045044,1759570238601,-500.0,0.00021877,2]
[389045046,1759570238610,-300.0,0.00021898,2]
[389045048,1759570238622,-164.0,0.000219,2]
[389045050,1759570238631,-164.0,0.000219,3]
[389045052,1759570238640,-164.0,0.000219,3]
[389045054,1759570238649,-200.0,0.00021916,2]
[389045056,1759570238659,-160.0,0.00021916,2]
[389045058,1759570238668,-1000.0,0.00021917,2]
[389045060,1759570238677,-1000.0,0.00021917,2]
[389045062,1759570238686,-1000.0,0.00021917,2]
[389045064,1759570238695,-1000.0,0.00021917,2]
[389045066,1759570238704,-1000.0,0.00021917,2]
[389045068,1759570238712,-1000.0,0.00021917,2]
[389045070,1759570238722,-1000.0,0.00021917,2]
[389045072,1759570238730,-1000.0,0.00021917,2]
[389045074,1759570238740,-1000.0,0.00021917,2]
[389045076,1759570238749,-1000.0,0.00021917,2]
[389045078,1759570238759,-343.16205694,0.00021917,2]
[389045080,1759570238768,-826.29413717,0.00021917,2]
[389045082,1759570238777,-151.0,0.00021917,2]
[389045084,1759570238786,-151.0,0.00021917,2]
[389045086,1759570238796,-151.0,0.00021917,2]
[389045088,1759570238805,-157.0014497,0.00021917,2]
[389045090,1759570238814,-729.01,0.00021917,2]
[389045092,1759570238823,-418.09081363,0.00021917,2]
[389045094,1759570238832,-500.0,0.00021917,2]
[389045095,1759570238841,-426.79960627,0.00021917,2]
[389045096,1759570238852,-500.0,0.00021917,2]
[389045097,1759570238861,-307.90295672,0.00021917,2]
[389045098,1759570238872,-500.0,0.00021917,2]
[389045099,1759570238881,-500.0,0.00021917,2]
[389045100,1759570238890,-500.0,0.00021917,2]
[389045101,1759570238899,-794.56074767,0.00021917,2]
[389045102,1759570238908,-500.0,0.00021917,2]
[389045103,1759570238918,-500.0,0.00021917,2]
[389045104,1759570238927,-500.0,0.00021917,2]
[389045105,1759570238936,-500.0,0.00021917,2]
[389045106,1759570238945,-500.0,0.00021917,2]
[389045107,1759570238955,-378.36915271,0.00021917,2]
[389045108,1759570238964,-500.0,0.00021917,2]
[389045109,1759570238973,-585.05,0.00021917,2]
[389045110,1759570238982,-1660.96,0.00021917,2]
[389045111,1759570238991,-500.0,0.00021917,2]
[389045112,1759570239000,-500.0,0.00021917,2]
[389045113,1759570239010,-500.0,0.00021917,2]
[389045114,1759570239020,-500.0,0.00021917,2]
[389045115,1759570239030,-500.0,0.00021917,2]
[389045116,1759570239043,-500.0,0.00021917,2]
[389045117,1759570239053,-500.0,0.00021917,2]
[389045118,1759570239063,-423.43437365,0.00021917,2]
[389045119,1759570239071,-500.0,0.00021917,2]
[389045120,1759570239080,-500.0,0.00021917,2]
[389045121,1759570239089,-500.0,0.00021917,2]
[389045123,1759570239098,-519.91,0.00021917,2]
[389045124,1759570239108,-500.0,0.00021917,2]
[389045125,1759570239118,-594.16,0.00021917,2]
[389045127,1759570239128,-500.0,0.00021917,2]
[389045129,1759570239137,-500.0,0.00021917,2]
[389045131,1759570239146,-508.85,0.00021917,2]
[389045133,1759570239155,-500.0,0.00021917,2]
[389045135,1759570239165,-500.0,0.00021917,2]
[389045137,1759570239175,-520.0,0.00021917,3]
[389045139,1759570239184,-500.0,0.00021917,2]
[389045141,1759570239193,-500.0,0.00021917,2]
[389045143,1759570239202,-542.2,0.00021917,2]
[389045145,1759570239211,-500.0,0.00021917,2]
[389045147,1759570239221,-1000.0,0.00021917,2]
[389045149,1759570239230,-500.0,0.00021917,2]
[389045151,1759570239239,-500.0,0.00021917,2]
[389045153,1759570239250,-500.0,0.00021917,2]
[389045155,1759570239259,-500.0,0.00021917,2]
[389045157,1759570239268,-500.0,0.00021917,2]
[389045159,1759570239278,-500.0,0.00021917,2]
[389045161,1759570239287,-500.0,0.00021917,2]
[389045163,1759570239296,-500.0,0.00021917,2]
[389045165,1759570239305,-500.0,0.00021917,2]
[389045167,1759570239314,-444.78827819,0.00021917,2]
[389045169,1759570239323,-500.0,0.00021917,2]
[389045171,1759570239333,-500.0,0.00021917,2]
[389045173,1759570239343,-500.0,0.00021917,2]
[389045175,1759570239353,-500.0,0.00021917,2]
[389045177,1759570239364,-500.0,0.00021917,2]
[389045179,1759570239373,-702.13,0.00021917,2]
[389045181,1759570239382,-500.0,0.00021917,2]
[389045183,1759570239391,-500.0,0.00021917,2]
[389045185,1759570239401,-500.0,0.00021917,2]
[389045187,1759570239410,-500.0,0.00021917,2]
[389045189,1759570239420,-500.0,0.00021917,2]
[389045191,1759570239429,-551.19,0.00021917,2]
[389045193,1759570239439,-518.47,0.00021917,2]
[389045195,1759570239448,-991.58,0.00021917,2]
[389045197,1759570239457,-738.92,0.00021917,2]
[389045199,1759570239466,-500.0,0.00021917,2]
[389045201,1759570239475,-500.0,0.00021917,2]
[389045203,1759570239484,-500.0,0.00021917,2]
[389045205,1759570239493,-500.0,0.00021917,2]
[389045207,1759570239502,-500.0,0.00021917,2]
[389045209,1759570239511,-500.0,0.00021917,2]
[389045211,1759570239520,-500.0,0.00021917,2]
[389045213,1759570239529,-500.0,0.00021917,2]
[389045215,1759570239539,-500.0,0.00021917,2]
[389045217,1759570239548,-500.0,0.00021917,2]
[389045219,1759570239558,-928.95,0.00021917,2]
[389045221,1759570239568,-500.0,0.00021917,2]
[389045223,1759570239577,-974.96,0.00021917,2]
[389045225,1759570239587,-500.0,0.00021917,2]
[389045227,1759570239597,-500.0,0.00021917,2]
[389045229,1759570239606,-201.97857689,0.00021917,2]
[389045231,1759570239615,-500.0,0.00021917,2]
[389045233,1759570239624,-500.0,0.00021917,2]
[389045235,1759570239633,-500.0,0.00021917,2]
[389045237,1759570239642,-500.0,0.00021917,2]
[389045239,1759570239651,-500.0,0.00021917,2]
[389045241,1759570239659,-611.46586544,0.00021917,2]
[389045243,1759570239668,-500.0,0.00021917,2]
[389045245,1759570239677,-151.0,0.00021917,2]
[389045247,1759570239687,-517.2,0.00021917,2]
[389045249,1759570239696,-500.0,0.00021917,2]
[389045251,1759570239705,-500.0,0.00021917,2]
[389045253,1759570239715,-500.0,0.00021917,2]
[389045255,1759570239725,-500.0,0.00021917,2]
[389045257,1759570239734,-500.0,0.00021917,2]
[389045259,1759570239743,-500.0,0.00021917,2]
[389045261,1759570239752,-500.0,0.00021917,2]
[389045263,1759570239761,-480.09657904,0.00021917,2]
[389045265,1759570239770,-500.0,0.00021917,2]
[389045267,1759570239779,-500.0,0.00021917,2]
[389045269,1759570239787,-500.0,0.00021917,2]
[389045271,1759570239797,-500.0,0.00021917,2]
[389045273,1759570239806,-500.0,0.00021917,2]
[389045276,1759570239815,-500.0,0.00021917,2]
[389045278,1759570239824,-500.0,0.00021917,2]
[389045280,1759570239833,-999.31,0.00021917,2]
[389045282,1759570239842,-151.0,0.00021917,2]
[389045284,1759570239851,-151.0,0.00021917,2]
[389045286,1759570239860,-777.22,0.00021917,2]
[389045287,1759570239869,-500.0,0.00021917,2]
[389045290,1759570239878,-500.0,0.00021917,2]
[389045291,1759570239888,-500.0,0.00021917,2]
[389045293,1759570239897,-383.21343843,0.00021917,2]
[389045295,1759570239906,-500.0,0.00021917,2]
[389045297,1759570239915,-151.0,0.00021917,2]
[389045299,1759570239924,-151.0,0.00021917,2]
[389045301,1759570239933,-500.0,0.00021917,2]
[389045303,1759570239942,-500.0,0.00021917,2]
[389045305,1759570239951,-500.0,0.00021917,2]
[389045307,1759570239960,-500.0,0.00021917,2]
[389045309,1759570239970,-500.0,0.00021917,2]
[389045311,1759570239979,-551.35914606,0.00021917,2]
[389045313,1759570239988,-500.0,0.00021917,2]
[389045315,1759570239998,-500.0,0.00021917,2]
[389045318,1759570240007,-500.0,0.00021917,2]
[389045320,1759570240016,-531.42,0.00021917,2]
[389045321,1759570240025,-500.0,0.00021917,2]
[389045323,1759570240036,-500.0,0.00021917,2]
[389045325,1759570240045,-500.0,0.00021917,2]
[389045327,1759570240054,-500.0,0.00021917,2]
[389045329,1759570240063,-500.0,0.00021917,2]
[389045331,1759570240072,-500.0,0.00021917,2]
[389045333,1759570240082,-500.0,0.00021917,2]
[389045336,1759570240091,-500.0,0.00021917,2]
[389045338,1759570240100,-500.0,0.00021917,2]
[389045340,1759570240109,-500.0,0.00021917,2]
[389045341,1759570240118,-537.17,0.00021917,2]
[389045343,1759570240127,-500.0,0.00021917,2]
[389045345,1759570240137,-500.0,0.00021917,2]
[389045347,1759570240148,-500.0,0.00021917,2]
[389045350,1759570240159,-500.0,0.00021917,2]
[389045352,1759570240168,-500.0,0.00021917,2]
[389045354,1759570240178,-501.84914345,0.00021917,2]
[389045356,1759570240187,-500.0,0.00021917,2]
[389045358,1759570240196,-500.0,0.00021917,2]
[389045360,1759570240205,-879.18,0.00021917,2]
[389045362,1759570240214,-500.0,0.00021917,2]
[389045364,1759570240223,-500.0,0.00021917,2]
[389045366,1759570240231,-500.0,0.00021917,2]
[389045367,1759570240240,-618.9,0.00021917,2]
[389045369,1759570240249,-500.0,0.00021917,2]
[389045371,1759570240258,-608.18,0.00021917,2]
[389045373,1759570240266,-656.33,0.00021917,2]
[389045375,1759570240275,-500.0,0.00021917,2]
[389045377,1759570240284,-500.0,0.00021917,2]
[389045379,1759570240293,-500.0,0.00021917,2]
[389045381,1759570240302,-500.0,0.00021917,2]
[389045383,1759570240310,-500.0,0.00021917,2]
[389045385,1759570240321,-387.7909883,0.00021917,2]
[389045387,1759570240330,-1507.48,0.00021917,2]
[389045389,1759570240340,-500.0,0.00021917,2]
[389045392,1759570240349,-500.0,0.00021917,2]
[389045394,1759570240359,-500.0,0.00021917,2]
[389045396,1759570240369,-500.0,0.00021917,2]
[389045398,1759570240378,-500.0,0.00021917,2]
[389045400,1759570240388,-600.14365041,0.00021917,2]
[389045402,1759570240397,-500.0,0.00021917,2]
[389045404,1759570240406,-500.0,0.00021917,2]
[389045406,1759570240415,-500.0,0.00021917,2]
[389045408,1759570240423,-406.22132863,0.00021917,2]
[389045410,1759570240433,-500.0,0.00021917,2]
[389045412,1759570240443,-500.0,0.00021917,2]
[389045414,1759570240451,-500.0,0.00021917,2]
[389045416,1759570240460,-500.0,0.00021917,2]
[389045418,1759570240470,-500.0,0.00021917,2]
[389045420,1759570240479,-500.0,0.00021917,2]
[389045422,1759570240487,-500.0,0.00021917,2]
[389045423,1759570240496,-791.86,0.00021917,2]
[389045426,1759570240506,-500.0,0.00021917,2]
[389045428,1759570240517,-500.0,0.00021917,2]
[389045429,1759570240527,-500.0,0.00021917,2]
[389045432,1759570240538,-500.0,0.00021917,2]
[389045433,1759570240547,-500.0,0.00021917,2]
[389045436,1759570240555,-500.0,0.00021917,2]
[389045437,1759570240564,-500.0,0.00021917,2]
[389045439,1759570240573,-500.0,0.00021917,2]
[389045441,1759570240582,-500.0,0.00021917,2]
[389045444,1759570240592,-500.0,0.00021917,2]
[389045446,1759570240601,-500.0,0.00021917,2]
[389045448,1759570240610,-500.0,0.00021917,2]
[389045450,1759570240620,-500.0,0.00021917,2]
[389045452,1759570240628,-1267.01,0.00021917,2]
[389045454,1759570240638,-500.0,0.00021917,2]
[389045456,1759570240647,-359.86182584,0.00021917,2]
[389045458,1759570240656,-481.24751703,0.00021917,2]
[389045459,1759570240664,-1140.04,0.00021917,2]
[389045462,1759570240674,-730.44,0.00021917,2]
[389045464,1759570240683,-500.0,0.00021917,2]
[389045465,1759570240692,-500.0,0.00021917,2]
[389045467,1759570240701,-500.0,0.00021917,2]
[389045469,1759570240710,-400.5787892,0.00021917,2]
[389045471,1759570240719,-398.42588855,0.00021917,2]
[389045473,1759570240728,-500.0,0.00021917,2]
[389045497,1759570240931,-500.0,0.00021917,2]
[389045500,1759570240942,-500.0,0.00021917,2]
[389045502,1759570240953,-500.0,0.00021917,2]
[389045504,1759570240963,-500.0,0.00021917,2]
[389045506,1759570240973,-500.0,0.00021917,2]
[389045508,1759570240982,-500.0,0.00021917,2]
[389045510,1759570240991,-500.0,0.00021917,2]
[389045512,1759570241000,-500.0,0.00021917,2]
[389045514,1759570241009,-500.0,0.00021917,2]
[389045516,1759570241018,-644.86,0.00021917,2]
[389045517,1759570241027,-500.0,0.00021917,2]
[389045519,1759570241039,-500.0,0.00021917,2]
[389045521,1759570241048,-500.0,0.00021917,2]
[389045523,1759570241057,-500.0,0.00021917,2]
[389045525,1759570241066,-500.0,0.00021917,2]
[389045527,1759570241075,-500.0,0.00021917,2]
[389045529,1759570241085,-151.0,0.00021917,2]
[389045531,1759570241094,-151.0,0.00021917,2]
[389045533,1759570241103,-1190.5,0.00021917,2]
[389045535,1759570241113,-500.0,0.00021917,2]
[389045537,1759570241122,-502.99,0.00021917,2]
[389045539,1759570241132,-500.0,0.00021917,2]
[389045541,1759570241141,-500.0,0.00021917,2]
[389045543,1759570241150,-500.0,0.00021917,2]
[389045545,1759570241158,-500.0,0.00021917,2]
[389045547,1759570241167,-500.0,0.00021917,2]
[389045549,1759570241176,-500.0,0.00021917,2]
[389045551,1759570241187,-500.0,0.00021917,2]
[389045553,1759570241195,-500.0,0.00021917,2]
[389045555,1759570241205,-1298.81,0.00021917,2]
[389045557,1759570241214,-500.0,0.00021917,2]
[389045559,1759570241223,-500.62941618,0.00021917,2]
[389045561,1759570241232,-186.93841996,0.00021917,2]